[Event "Snabbschacks-KM 2025"]
[Site "Linköping, Sweden"]
[Date "2025.05.20"]
[Round "7.1"]
[White "Nyberg, Peter"]
[Black "Rogoz, Vladyslav"]
[Result "1-0"]
[TimeControl "15 min + 5 sek"]
[WhiteElo "1984"]
[BlackElo "2108"]

1. c4 {[%clk 00:15:08]} {[%emt 00:00:02]} e6 {[%clk 00:15:09]} {[%emt
00:00:01]} 2. e4 {[%clk 00:15:08]} {[%emt 00:00:05]} b6 {[%clk 00:15:14]}
{[%emt 00:00:01]} 3. Nc3 {[%clk 00:15:07]} {[%emt 00:00:05]} Bb7 {[%clk
00:15:17]} {[%emt 00:00:02]} 4. g3 {[%clk 00:14:53]} {[%emt 00:00:19]} Bb4
{[%clk 00:15:20]} {[%emt 00:00:02]} 5. Nge2 {[%clk 00:14:37]} {[%emt 00:00:20]}
f5 {[%clk 00:15:23]} {[%emt 00:00:03]} 6. a3 {[%clk 00:14:07]} {[%emt
00:00:35]} Bxc3 {[%clk 00:15:26]} {[%emt 00:00:02]} 7. Nxc3 {[%clk 00:14:06]}
{[%emt 00:00:07]} fxe4 {[%clk 00:15:12]} {[%emt 00:00:25]} 8. Bg2 {[%clk
00:13:57]} {[%emt 00:00:06]} Nf6 {[%clk 00:15:09]} {[%emt 00:00:08]} 9. d3
{[%clk 00:13:47]} {[%emt 00:00:15]} d5 {[%clk 00:14:46]} {[%emt 00:00:28]} 10.
Bg5 {[%clk 00:11:36]} {[%emt 00:02:15]} Nbd7 {[%clk 00:13:22]} {[%emt
00:01:30]} 11. cxd5 {[%clk 00:10:49]} {[%emt 00:00:52]} exd3 {[%clk 00:12:48]}
{[%emt 00:00:38]} 12. O-O {[%clk 00:09:35]} {[%emt 00:01:18]} O-O {[%clk
00:11:47]} {[%emt 00:01:07]} 13. Re1 {[%clk 00:08:28]} {[%emt 00:01:12]} h6
{[%clk 00:11:24]} {[%emt 00:00:28]} 14. dxe6 {[%clk 00:08:16]} {[%emt
00:00:18]} Bxg2 {[%clk 00:09:45]} {[%emt 00:01:44]} 15. e7 {[%clk 00:08:14]}
{[%emt 00:00:07]} Qc8 {[%clk 00:09:30]} {[%emt 00:00:20]} 16. exf8=Q+ {[%clk
00:08:05]} {[%emt 00:00:14]} Nxf8 {[%clk 00:09:33]} {[%emt 00:00:02]} 17. Bxf6
{[%clk 00:07:42]} {[%emt 00:00:28]} Qh3 {[%clk 00:08:52]} {[%emt 00:00:46]} 18.
Re7 {[%clk 00:05:41]} {[%emt 00:02:05]} gxf6 {[%clk 00:08:31]} {[%emt
00:00:27]} 19. Qb3+ {[%clk 00:05:31]} {[%emt 00:00:15]} Kh8 {[%clk 00:07:48]}
{[%emt 00:00:48]} 20. Qf7 {[%clk 00:05:06]} {[%emt 00:00:29]} Qg4 {[%clk
00:07:35]} {[%emt 00:00:18]} 21. Qxf6+ {[%clk 00:04:57]} {[%emt 00:00:14]} Kg8
{[%clk 00:07:39]} {[%emt 00:00:02]} 22. Kxg2 {[%clk 00:04:52]} {[%emt
00:00:10]} Rd8 {[%clk 00:06:52]} {[%emt 00:00:52]} 23. Rg7+ {[%clk 00:04:08]}
{[%emt 00:00:49]} Qxg7 {[%clk 00:06:54]} {[%emt 00:00:03]} 24. Qxd8 {[%clk
00:04:12]} c5 {[%clk 00:05:48]} {[%emt 00:01:11]} 25. Qxd3 {[%clk 00:04:15]}
{[%emt 00:00:02]} Ne6 {[%clk 00:05:49]} {[%emt 00:00:05]} 26. Nd5 {[%clk
00:03:33]} {[%emt 00:00:47]} Nd4 {[%clk 00:05:37]} {[%emt 00:00:18]} 27. Qe4
{[%clk 00:03:24]} {[%emt 00:00:13]} Qg5 {[%clk 00:04:05]} {[%emt 00:01:37]} 28.
Re1 {[%clk 00:03:05]} {[%emt 00:00:23]} Nf5 {[%clk 00:03:45]} {[%emt 00:00:26]}
29. h4 {[%clk 00:02:33]} {[%emt 00:00:37]} Qg6 {[%clk 00:03:24]} {[%emt
00:00:26]} 30. Qe6+ {[%clk 00:02:36]} {[%emt 00:00:02]} Qxe6 {[%clk 00:03:20]}
{[%emt 00:00:09]} 31. Rxe6 {[%clk 00:02:40]} {[%emt 00:00:01]} h5 {[%clk
00:02:53]} {[%emt 00:00:32]} 32. Ne7+ {[%clk 00:02:22]} {[%emt 00:00:23]} Kf7
{[%clk 00:02:56]} {[%emt 00:00:02]} 33. Nxf5 {[%clk 00:02:26]} Kxe6 {[%clk
00:03:01]} {[%emt 00:00:01]} 34. Ng7+ {[%clk 00:02:26]} {[%emt 00:00:04]} Kd5
{[%clk 00:03:03]} {[%emt 00:00:03]} 35. Nxh5 {[%clk 00:02:28]} {[%emt
00:00:03]} Kc4 {[%clk 00:03:08]} 36. Nf4 {[%clk 00:02:24]} {[%emt 00:00:09]}
Kb3 {[%clk 00:03:12]} 37. Nd3 {[%clk 00:02:26]} {[%emt 00:00:02]} Kc2 {[%clk
00:03:16]} {[%emt 00:00:01]} 38. h5 {[%clk 00:02:11]} {[%emt 00:00:20]} c4
{[%clk 00:03:20]} {[%emt 00:00:01]} 39. Ne5 {[%clk 00:02:11]} {[%emt 00:00:04]}
Kxb2 {[%clk 00:03:18]} {[%emt 00:00:08]} 40. Nxc4+ {[%clk 00:02:15]} {[%emt
00:00:01]} Kb3 {[%clk 00:03:22]} 41. Nxb6 {[%clk 00:02:19]} {[%emt 00:00:01]}
axb6 {[%clk 00:03:26]} {[%emt 00:00:01]} 42. h6 {[%clk 00:02:23]} Kxa3 43. h7
{[%clk 00:02:27]} b5 {[%clk 00:03:35]} 44. h8=Q {[%clk 00:02:30]} {[%emt
00:00:02]} b4 {[%clk 00:03:39]} {[%emt 00:00:01]} 45. Qa8+ {[%clk 00:02:33]}
{[%emt 00:00:02]} Kb2 {[%clk 00:03:43]} {[%emt 00:00:01]} 46. Qb7 {[%clk
00:02:36]} {[%emt 00:00:02]} Kc3 {[%clk 00:03:47]} 47. g4 b3 48. g5 {[%clk
00:02:44]} Kc2 {[%clk 00:03:56]} 49. g6 {[%clk 00:02:48]} {[%emt 00:00:01]} 1-0

[Event "Snabbschacks-KM 2025"]
[Site "Linköping, Sweden"]
[Date "2025.05.20"]
[Round "7.2"]
[White "Andersson, Mats 1960"]
[Black "Davidsson, Asker"]
[Result "1-0"]
[TimeControl "15 min + 5 sek"]
[WhiteTitle "FM"]
[WhiteElo "2225"]
[BlackElo "1796"]

1. c4 {[%clk 00:14:58]} {[%emt 00:00:04]} c5 {[%clk 00:15:07]} {[%emt
00:00:11]} 2. g3 {[%clk 00:14:59]} {[%emt 00:00:04]} Nc6 {[%clk 00:15:07]}
{[%emt 00:00:05]} 3. Bg2 {[%clk 00:15:02]} {[%emt 00:00:02]} g6 {[%clk
00:15:09]} {[%emt 00:00:04]} 4. Nc3 {[%clk 00:14:39]} {[%emt 00:00:27]} Bg7
{[%clk 00:15:11]} {[%emt 00:00:03]} 5. d3 {[%clk 00:14:43]} {[%emt 00:00:02]}
e5 {[%clk 00:15:04]} {[%emt 00:00:12]} 6. Nf3 {[%clk 00:14:27]} {[%emt
00:00:20]} Nge7 {[%clk 00:15:03]} {[%emt 00:00:07]} 7. Nd2 {[%clk 00:14:30]}
{[%emt 00:00:02]} O-O {[%clk 00:14:58]} {[%emt 00:00:23]} 8. Nf1 {[%clk
00:14:27]} {[%emt 00:00:02]} d6 {[%clk 00:14:40]} {[%emt 00:00:15]} 9. Ne3
{[%clk 00:14:25]} {[%emt 00:00:06]} f5 {[%clk 00:14:00]} {[%emt 00:00:46]} 10.
Ned5 {[%clk 00:14:02]} {[%emt 00:00:28]} h6 {[%clk 00:13:47]} {[%emt 00:00:18]}
11. a3 {[%clk 00:14:04]} {[%emt 00:00:03]} Nxd5 {[%clk 00:13:47]} {[%emt
00:00:05]} 12. Nxd5 {[%clk 00:14:03]} {[%emt 00:00:05]} Ne7 {[%clk 00:13:42]}
{[%emt 00:00:11]} 13. b4 {[%clk 00:12:25]} {[%emt 00:01:43]} e4 {[%clk
00:12:28]} {[%emt 00:01:19]} 14. Rb1 {[%clk 00:11:16]} {[%emt 00:01:14]} Nxd5
{[%clk 00:12:28]} {[%emt 00:00:05]} 15. cxd5 {[%clk 00:11:19]} {[%emt
00:00:02]} exd3 {[%clk 00:11:03]} {[%emt 00:01:30]} 16. Qxd3 {[%clk 00:11:02]}
{[%emt 00:00:22]} b6 {[%clk 00:09:41]} {[%emt 00:01:27]} 17. O-O {[%clk
00:10:47]} {[%emt 00:00:20]} Kh7 {[%clk 00:09:29]} {[%emt 00:00:18]} 18. Bb2
{[%clk 00:09:29]} {[%emt 00:01:22]} Bxb2 {[%clk 00:09:18]} {[%emt 00:00:16]} 19.
Rxb2 {[%clk 00:09:32]} {[%emt 00:00:02]} f4 {[%clk 00:09:07]} {[%emt 00:00:16]}
20. Be4 {[%clk 00:08:49]} {[%emt 00:00:47]} Bf5 {[%clk 00:08:48]} {[%emt
00:00:25]} 21. Rd2 {[%clk 00:08:10]} {[%emt 00:00:44]} fxg3 {[%clk 00:08:17]}
{[%emt 00:00:36]} 22. hxg3 {[%clk 00:08:00]} {[%emt 00:00:14]} Qg5 {[%clk
00:07:57]} {[%emt 00:00:26]} 23. Bxf5 {[%clk 00:07:33]} {[%emt 00:00:32]} Qxf5
{[%clk 00:07:44]} {[%emt 00:00:17]} 24. e4 {[%clk 00:06:56]} {[%emt 00:00:41]}
Qf3 {[%clk 00:07:14]} {[%emt 00:00:37]} 25. bxc5 {[%clk 00:06:56]} {[%emt
00:00:05]} bxc5 {[%clk 00:06:38]} {[%emt 00:00:41]} 26. Rb1 {[%clk 00:06:57]}
{[%emt 00:00:04]} Rf7 {[%clk 00:02:22]} {[%emt 00:04:21]} 27. Qxf3 {[%clk
00:06:55]} {[%emt 00:00:07]} Rxf3 {[%clk 00:02:26]} 28. Rb7+ {[%clk 00:06:58]}
{[%emt 00:00:02]} Kg8 {[%clk 00:02:26]} {[%emt 00:00:04]} 29. Rd7 {[%clk
00:06:58]} {[%emt 00:00:06]} Rxa3 {[%clk 00:01:23]} {[%emt 00:01:08]} 30. Rxd6
{[%clk 00:07:01]} {[%emt 00:00:02]} Kf7 {[%clk 00:01:06]} {[%emt 00:00:22]} 31.
Rb2 {[%clk 00:06:57]} {[%emt 00:00:08]} Re8 {[%clk 00:00:43]} {[%emt 00:00:28]}
32. Rb7+ {[%clk 00:06:52]} {[%emt 00:00:10]} Re7 {[%clk 00:00:47]} {[%emt
00:00:02]} 33. Rxe7+ {[%clk 00:06:56]} Kxe7 {[%clk 00:00:51]} {[%emt 00:00:02]}
34. Rxg6 {[%clk 00:06:59]} {[%emt 00:00:01]} c4 {[%clk 00:00:30]} {[%emt
00:00:26]} 35. Rc6 {[%clk 00:07:03]} {[%emt 00:00:01]} Ra1+ {[%clk 00:00:33]}
{[%emt 00:00:02]} 36. Kg2 {[%clk 00:07:06]} {[%emt 00:00:02]} Rc1 {[%clk
00:00:31]} {[%emt 00:00:07]} 37. e5 {[%clk 00:07:09]} {[%emt 00:00:02]} a5
{[%clk 00:00:25]} {[%emt 00:00:12]} 38. Rc7+ {[%clk 00:07:06]} {[%emt
00:00:08]} Kd8 {[%clk 00:00:24]} {[%emt 00:00:06]} 39. d6 {[%clk 00:07:10]}
{[%emt 00:00:01]} Re1 {[%clk 00:00:11]} {[%emt 00:00:17]} 40. f4 {[%clk
00:07:07]} {[%emt 00:00:07]} Rc1 {[%clk 00:00:06]} {[%emt 00:00:11]} 41. Ra7
{[%clk 00:07:09]} {[%emt 00:00:02]} Ra1 {[%clk 00:00:07]} {[%emt 00:00:04]} 42.
e6 {[%clk 00:07:13]} {[%emt 00:00:02]} Kc8 {[%clk 00:00:08]} {[%emt 00:00:04]}
43. d7+ {[%clk 00:07:07]} {[%emt 00:00:10]} 1-0

[Event "Snabbschacks-KM 2025"]
[Site "Linköping, Sweden"]
[Date "2025.05.20"]
[Round "7.3"]
[White "Andersson, Fredrik 1969"]
[Black "Olsson, Simon"]
[Result "0-1"]
[TimeControl "15 min + 5 sek"]
[WhiteElo "1754"]
[BlackElo "2048"]

1. d4 {[%clk 00:15:08]} {[%emt 00:00:01]} Nf6 {[%clk 00:15:09]} {[%emt
00:00:01]} 2. Nc3 {[%clk 00:15:11]} {[%emt 00:00:02]} d5 {[%clk 00:15:09]}
{[%emt 00:00:06]} 3. Bf4 {[%clk 00:15:14]} {[%emt 00:00:02]} c5 {[%clk
00:15:01]} {[%emt 00:00:13]} 4. e4 {[%clk 00:15:15]} {[%emt 00:00:03]} dxe4
{[%clk 00:13:55]} {[%emt 00:01:11]} 5. dxc5 {[%clk 00:15:17]} {[%emt 00:00:04]}
Nc6 {[%clk 00:13:26]} {[%emt 00:00:34]} 6. Nb5 {[%clk 00:12:47]} {[%emt
00:02:35]} e5 {[%clk 00:13:13]} {[%emt 00:00:17]} 7. Qxd8+ {[%clk 00:12:44]}
{[%emt 00:00:08]} Kxd8 {[%clk 00:13:17]} {[%emt 00:00:01]} 8. O-O-O+ {[%clk
00:12:42]} {[%emt 00:00:08]} Ke7 {[%clk 00:13:20]} {[%emt 00:00:01]} 9. Bg5
{[%clk 00:11:23]} {[%emt 00:01:25]} h6 {[%clk 00:12:08]} {[%emt 00:01:17]} 10.
Bxf6+ {[%clk 00:10:06]} {[%emt 00:01:22]} Kxf6 {[%clk 00:12:07]} {[%emt
00:00:05]} 11. Nc7 {[%clk 00:09:12]} {[%emt 00:00:58]} Rb8 {[%clk 00:11:49]}
{[%emt 00:00:24]} 12. Nd5+ {[%clk 00:09:05]} {[%emt 00:00:12]} Kg6 {[%clk
00:11:34]} {[%emt 00:00:21]} 13. f3 {[%clk 00:08:17]} {[%emt 00:00:53]} exf3
{[%clk 00:11:35]} {[%emt 00:00:04]} 14. Nxf3 {[%clk 00:08:18]} {[%emt
00:00:04]} Bxc5 {[%clk 00:11:32]} {[%emt 00:00:08]} 15. Bd3+ {[%clk 00:07:37]}
{[%emt 00:00:45]} f5 {[%clk 00:11:17]} {[%emt 00:00:21]} 16. g4 {[%clk
00:07:04]} {[%emt 00:00:37]} Rd8 {[%clk 00:10:23]} {[%emt 00:00:59]} 17. gxf5+
{[%clk 00:05:47]} {[%emt 00:01:22]} Kf7 {[%clk 00:10:17]} {[%emt 00:00:11]} 18.
Bc4 {[%clk 00:03:38]} {[%emt 00:02:13]} Kf8 {[%clk 00:10:21]} {[%emt 00:00:01]}
19. Rhe1 {[%clk 00:03:16]} {[%emt 00:00:27]} Bxf5 {[%clk 00:08:24]} {[%emt
00:02:02]} 20. Nxe5 {[%clk 00:03:08]} {[%emt 00:00:14]} g6 {[%clk 00:07:16]}
{[%emt 00:01:13]} 21. Nxc6 {[%clk 00:01:43]} {[%emt 00:01:29]} bxc6 {[%clk
00:07:20]} {[%emt 00:00:01]} 22. Nf4 {[%clk 00:01:38]} {[%emt 00:00:10]} Rxd1+
{[%clk 00:06:59]} {[%emt 00:00:26]} 23. Kxd1 {[%clk 00:01:42]} {[%emt
00:00:02]} Rd8+ {[%clk 00:07:03]} 24. Kc1 {[%clk 00:01:45]} {[%emt 00:00:02]}
Re8 {[%clk 00:06:15]} {[%emt 00:00:52]} 25. Rf1 {[%clk 00:01:41]} {[%emt
00:00:08]} Be3+ {[%clk 00:06:11]} {[%emt 00:00:09]} 26. Kb1 {[%clk 00:01:31]}
{[%emt 00:00:16]} Bxf4 {[%emt 00:00:19]} 0-1

[Event "Snabbschacks-KM 2025"]
[Site "Linköping, Sweden"]
[Date "2025.05.20"]
[Round "7.4"]
[White "Gustafsson, Nils"]
[Black "Thornqvist, Ofelia"]
[Result "0-1"]
[TimeControl "15 min + 5 sek"]
[WhiteElo "1861"]
[BlackElo "1881"]

1. e4 {[%clk 00:15:05]} {[%emt 00:00:04]} e5 {[%clk 00:15:08]} {[%emt
00:00:02]} 2. Nf3 {[%clk 00:15:06]} {[%emt 00:00:03]} Nc6 {[%clk 00:15:12]}
{[%emt 00:00:02]} 3. Bc4 {[%clk 00:15:09]} {[%emt 00:00:03]} Nf6 {[%clk
00:15:13]} {[%emt 00:00:03]} 4. d3 {[%clk 00:15:07]} {[%emt 00:00:06]} h6
{[%clk 00:15:13]} {[%emt 00:00:05]} 5. O-O {[%clk 00:14:55]} {[%emt 00:00:17]}
d6 {[%clk 00:15:15]} {[%emt 00:00:03]} 6. c3 {[%clk 00:14:54]} {[%emt
00:00:06]} g6 {[%clk 00:15:09]} {[%emt 00:00:12]} 7. Re1 {[%clk 00:13:47]}
{[%emt 00:01:10]} Bg7 {[%clk 00:14:43]} {[%emt 00:00:32]} 8. d4 {[%clk
00:13:40]} {[%emt 00:00:12]} Bg4 {[%clk 00:13:47]} {[%emt 00:01:02]} 9. d5
{[%clk 00:11:22]} {[%emt 00:02:23]} Ne7 {[%clk 00:13:29]} {[%emt 00:00:23]} 10.
h3 {[%clk 00:10:22]} {[%emt 00:01:04]} Bd7 {[%clk 00:13:18]} {[%emt 00:00:16]}
11. Qb3 {[%clk 00:08:49]} {[%emt 00:01:38]} Qc8 {[%clk 00:12:35]} {[%emt
00:00:49]} 12. Nbd2 {[%clk 00:08:26]} {[%emt 00:00:28]} O-O {[%clk 00:12:36]}
{[%emt 00:00:03]} 13. Nf1 {[%clk 00:07:59]} {[%emt 00:00:32]} Nh5 {[%clk
00:12:25]} {[%emt 00:00:16]} 14. Bd3 {[%clk 00:07:16]} {[%emt 00:00:48]} g5
{[%clk 00:11:46]} {[%emt 00:00:44]} 15. N1h2 {[%clk 00:05:36]} {[%emt
00:01:45]} Nf4 {[%clk 00:11:39]} {[%emt 00:00:12]} 16. Bxf4 {[%clk 00:05:16]}
{[%emt 00:00:24]} gxf4 {[%clk 00:11:37]} {[%emt 00:00:07]} 17. c4 {[%clk
00:04:05]} {[%emt 00:01:17]} Kh7 {[%clk 00:11:25]} {[%emt 00:00:17]} 18. Bf1
{[%clk 00:04:08]} {[%emt 00:00:02]} Rg8 {[%clk 00:11:23]} {[%emt 00:00:06]} 19.
Kh1 {[%clk 00:03:52]} {[%emt 00:00:22]} Bf6 {[%clk 00:11:14]} {[%emt 00:00:14]}
20. Rac1 {[%clk 00:03:48]} {[%emt 00:00:08]} Ng6 {[%clk 00:10:28]} {[%emt
00:00:51]} 21. c5 {[%clk 00:03:29]} {[%emt 00:00:24]} Rg7 {[%clk 00:09:52]}
{[%emt 00:00:41]} 22. cxd6 {[%clk 00:02:33]} {[%emt 00:01:01]} c6 {[%clk
00:08:16]} {[%emt 00:01:41]} 23. dxc6 {[%clk 00:02:12]} {[%emt 00:00:25]} bxc6
{[%clk 00:08:18]} {[%emt 00:00:03]} 24. Qc4 {[%clk 00:01:15]} {[%emt 00:01:03]}
Nh4 {[%clk 00:07:45]} {[%emt 00:00:38]} 25. Rc2 {[%clk 00:00:42]} {[%emt
00:00:38]} Qg8 {[%clk 00:07:36]} {[%emt 00:00:14]} 26. Nxh4 {[%clk 00:00:25]}
{[%emt 00:00:22]} Bxh4 {[%clk 00:07:38]} {[%emt 00:00:02]} 27. Nf3 {[%clk
00:00:23]} {[%emt 00:00:07]} Bf6 {[%clk 00:07:23]} {[%emt 00:00:20]} 28. b3
{[%clk 00:00:10]} {[%emt 00:00:17]} Rg6 {[%clk 00:07:05]} {[%emt 00:00:24]} 29.
Rd1 {[%clk 00:00:12]} {[%emt 00:00:03]} Qg7 {[%clk 00:06:58]} {[%emt 00:00:12]}
30. Qa6 {[%clk 00:00:10]} {[%emt 00:00:08]} Rg8 {[%clk 00:06:47]} {[%emt
00:00:16]} 31. Qb7 {[%clk 00:00:08]} {[%emt 00:00:07]} Bxh3 {[%clk 00:05:27]}
{[%emt 00:01:25]} 32. gxh3 {[%clk 00:00:12]} Rg1+ {[%clk 00:05:22]} {[%emt
00:00:09]} 33. Kh2 {[%clk 00:00:16]} Rxf1 {[%clk 00:05:16]} {[%emt 00:00:12]}
34. Qxf7 {[%clk 00:00:11]} {[%emt 00:00:10]} Qxf7 {[%clk 00:04:34]} {[%emt
00:00:47]} 35. Rxf1 {[%clk 00:00:15]} Qd7 {[%clk 00:04:28]} {[%emt 00:00:12]}
36. Rd1 {[%clk 00:00:10]} {[%emt 00:00:10]} Bd8 {[%clk 00:04:13]} {[%emt
00:00:20]} 37. Nxe5 {[%clk 00:00:13]} {[%emt 00:00:02]} Qg7 {[%clk 00:04:04]}
{[%emt 00:00:14]} 38. Ng4 {[%clk 00:00:08]} {[%emt 00:00:11]} h5 {[%clk
00:03:59]} {[%emt 00:00:09]} 39. Rg1 {[%clk 00:00:12]} hxg4 {[%clk 00:03:56]}
{[%emt 00:00:08]} 40. Rxg4 {[%clk 00:00:15]} {[%emt 00:00:02]} Qe5 {[%clk
00:03:53]} {[%emt 00:00:09]} 0-1

[Event "Snabbschacks-KM 2025"]
[Site "Linköping, Sweden"]
[Date "2025.05.20"]
[Round "7.5"]
[White "Zoupounidis, Christos"]
[Black "Stefanovic, Dragan 1958"]
[Result "1-0"]
[TimeControl "15 min + 5 sek"]
[WhiteElo "1604"]
[BlackElo "1780"]

1. d4 {[%clk 00:15:07]} {[%emt 00:00:02]} Nf6 {[%clk 00:15:06]} {[%emt
00:00:04]} 2. c4 {[%clk 00:15:10]} {[%emt 00:00:02]} e5 {[%clk 00:15:07]}
{[%emt 00:00:05]} 3. Nc3 {[%clk 00:15:00]} {[%emt 00:00:15]} exd4 {[%clk
00:14:45]} {[%emt 00:00:28]} 4. Qxd4 {[%clk 00:15:03]} {[%emt 00:00:02]} Nc6
{[%clk 00:14:49]} {[%emt 00:00:01]} 5. Qd1 {[%clk 00:15:01]} {[%emt 00:00:07]}
Bb4 {[%clk 00:14:43]} {[%emt 00:00:10]} 6. Bg5 {[%clk 00:15:02]} {[%emt
00:00:03]} h6 {[%clk 00:14:27]} {[%emt 00:00:22]} 7. Bh4 {[%clk 00:15:00]}
{[%emt 00:00:06]} Bxc3+ {[%clk 00:14:06]} {[%emt 00:00:27]} 8. bxc3 {[%clk
00:15:04]} {[%emt 00:00:03]} d6 {[%clk 00:13:33]} {[%emt 00:00:37]} 9. e3
{[%clk 00:14:54]} {[%emt 00:00:15]} g5 {[%clk 00:13:27]} {[%emt 00:00:11]} 10.
Bg3 {[%clk 00:14:57]} {[%emt 00:00:01]} Ne4 {[%clk 00:13:26]} {[%emt 00:00:07]}
11. Qc2 {[%clk 00:15:01]} {[%emt 00:00:01]} Nxg3 {[%clk 00:13:19]} {[%emt
00:00:12]} 12. hxg3 {[%clk 00:15:03]} {[%emt 00:00:03]} Qf6 {[%clk 00:13:23]}
{[%emt 00:00:01]} 13. Ne2 {[%clk 00:14:53]} {[%emt 00:00:15]} Ne5 {[%clk
00:13:15]} {[%emt 00:00:13]} 14. Nd4 {[%clk 00:14:49]} {[%emt 00:00:09]} Bd7
{[%clk 00:12:27]} {[%emt 00:00:53]} 15. Be2 {[%clk 00:14:30]} {[%emt 00:00:24]}
a6 {[%clk 00:11:40]} {[%emt 00:00:52]} 16. f4 {[%clk 00:13:05]} {[%emt
00:01:29]} Nc6 {[%clk 00:11:01]} {[%emt 00:00:45]} 17. Bf3 {[%clk 00:13:06]}
{[%emt 00:00:04]} Qe7 {[%clk 00:08:43]} {[%emt 00:02:24]} 18. Kf2 {[%clk
00:12:46]} {[%emt 00:00:24]} g4 {[%clk 00:08:12]} {[%emt 00:00:36]} 19. Bxc6
{[%clk 00:12:40]} {[%emt 00:00:11]} bxc6 {[%clk 00:08:08]} {[%emt 00:00:09]} 20.
Rab1 {[%clk 00:11:10]} {[%emt 00:01:35]} c5 {[%clk 00:08:06]} {[%emt 00:00:08]}
21. Nf5 {[%clk 00:10:52]} {[%emt 00:00:22]} Qf6 {[%clk 00:08:09]} {[%emt
00:00:02]} 22. Qe4+ {[%clk 00:10:38]} {[%emt 00:00:19]} Be6 {[%clk 00:07:25]}
{[%emt 00:00:49]} 23. Qxa8+ {[%clk 00:10:38]} {[%emt 00:00:05]} Kd7 {[%clk
00:07:29]} {[%emt 00:00:01]} 24. Qxa6 {[%clk 00:09:36]} {[%emt 00:01:07]} Qxf5
{[%clk 00:07:30]} {[%emt 00:00:04]} 25. Qa4+ {[%clk 00:09:26]} {[%emt
00:00:15]} Ke7 {[%clk 00:06:49]} {[%emt 00:00:46]} 26. Rb7 {[%clk 00:09:21]}
{[%emt 00:00:10]} Bd7 {[%clk 00:06:38]} {[%emt 00:00:16]} 27. Rxc7 {[%clk
00:09:04]} {[%emt 00:00:22]} Kd8 {[%clk 00:06:07]} {[%emt 00:00:36]} 28. Qa5
{[%clk 00:07:55]} {[%emt 00:01:14]} Qc2+ {[%clk 00:04:00]} {[%emt 00:02:12]} 29.
Kg1 {[%clk 00:07:58]} {[%emt 00:00:01]} Ke7 {[%clk 00:04:03]} {[%emt 00:00:03]}
30. Kh2 {[%clk 00:07:16]} {[%emt 00:00:47]} Rb8 {[%clk 00:03:54]} {[%emt
00:00:13]} 31. Qa7 {[%clk 00:06:48]} {[%emt 00:00:34]} Rd8 {[%clk 00:03:38]}
{[%emt 00:00:21]} 32. Qb7 {[%clk 00:06:18]} {[%emt 00:00:35]} h5 {[%clk
00:02:56]} {[%emt 00:00:48]} 33. Qd5 {[%clk 00:06:01]} {[%emt 00:00:21]} h4
{[%clk 00:02:34]} {[%emt 00:00:27]} 34. Qg5+ {[%clk 00:06:00]} {[%emt
00:00:05]} Ke8 {[%clk 00:01:36]} {[%emt 00:01:03]} 35. Qxh4 {[%clk 00:05:43]}
{[%emt 00:00:21]} Qg6 {[%clk 00:00:44]} {[%emt 00:00:57]} 36. Rf1 {[%clk
00:04:56]} {[%emt 00:00:52]} f6 {[%clk 00:00:45]} {[%emt 00:00:05]} 37. f5
{[%clk 00:04:38]} {[%emt 00:00:23]} Qg7 {[%clk 00:00:43]} {[%emt 00:00:06]} 38.
Rf4 {[%clk 00:04:30]} {[%emt 00:00:13]} Kf7 {[%clk 00:00:41]} {[%emt 00:00:08]}
39. Qxg4 {[%clk 00:04:20]} {[%emt 00:00:14]} Qh7+ {[%clk 00:00:11]} {[%emt
00:00:36]} 40. Kg1 {[%clk 00:04:23]} {[%emt 00:00:02]} Ke8 {[%clk 00:00:15]}
{[%emt 00:00:01]} 41. Qh4 {[%clk 00:04:15]} {[%emt 00:00:13]} Qe7 {[%clk
00:00:11]} {[%emt 00:00:09]} 42. Qh8+ {[%clk 00:04:16]} {[%emt 00:00:05]} Kf7
{[%clk 00:00:15]} {[%emt 00:00:01]} 43. Qh7+ {[%clk 00:04:08]} {[%emt
00:00:13]} Kf8 {[%clk 00:00:20]} {[%emt 00:00:01]} 44. Qh6+ {[%clk 00:03:57]}
{[%emt 00:00:15]} Kf7 {[%clk 00:00:22]} {[%emt 00:00:03]} 45. Rg4 {[%clk
00:04:00]} {[%emt 00:00:02]} Qxe3+ {[%clk 00:00:25]} {[%emt 00:00:03]} 46. Qxe3
{[%clk 00:04:03]} {[%emt 00:00:02]} 1-0